[Event "Titled Tuesday Blitz May 30 Late 2023"]
[White "Bayo Milagro, Alvaro"]
[Black "Xiong, Jeffery"]
[WhiteFideId "22275240"]
[BlackFideId "2047640"]
[WhiteElo "2270"]
[BlackElo "2726"]
[Result "0-1"]
[Round "08"]
[TimeControl "180+2"]
[Date "2023.05.31"]
[WhiteClock "0:00:01"]
[BlackClock "0:00:45"]

1. Nf3 {[%clk 0:03:00]}  d5 {[%clk 0:02:58]} 2. c4 {[%clk 0:03:01]}  d4 {[%clk 0:02:59]} 3. b4 {[%clk 0:03:00]}  Bg4 {[%clk 0:02:58]} 4. d3 {[%clk 0:02:55]}  Bxf3 {[%clk 0:02:41]} 5. exf3 {[%clk 0:02:55]}  e6 {[%clk 0:02:42]} 6. a3 {[%clk 0:02:51]}  a5 {[%clk 0:02:43]} 7. b5 {[%clk 0:02:51]}  Nd7 {[%clk 0:02:43]} 8. g3 {[%clk 0:02:51]}  Ngf6 {[%clk 0:02:43]} 9. Bg2 {[%clk 0:02:51]}  Nc5 {[%clk 0:02:43]} 10. O-O {[%clk 0:02:50]}  Be7 {[%clk 0:02:44]} 11. f4 {[%clk 0:02:48]}  O-O {[%clk 0:02:43]} 12. a4 {[%clk 0:02:44]}  Rc8 {[%clk 0:02:36]} 13. Ba3 {[%clk 0:02:40]}  c6 {[%clk 0:02:35]} 14. Qc2 {[%clk 0:02:33]}  Nfd7 {[%clk 0:02:33]} 15. Nd2 {[%clk 0:02:32]}  cxb5 {[%clk 0:02:34]} 16. axb5 {[%clk 0:02:31]}  Qc7 {[%clk 0:02:27]} 17. Nb3 {[%clk 0:02:21]}  Nxb3 {[%clk 0:02:25]} 18. Qxb3 {[%clk 0:02:20]}  Bxa3 {[%clk 0:02:24]} 19. Qxa3 {[%clk 0:02:17]}  b6 {[%clk 0:02:21]} 20. Qb2 {[%clk 0:02:12]}  Qd6 {[%clk 0:02:20]} 21. Rfe1 {[%clk 0:01:58]}  Nc5 {[%clk 0:02:21]} 22. Qc2 {[%clk 0:01:48]}  Rfe8 {[%clk 0:02:20]} 23. Re2 {[%clk 0:01:42]}  Re7 {[%clk 0:02:18]} 24. Rae1 {[%clk 0:01:42]}  g6 {[%clk 0:02:19]} 25. h4 {[%clk 0:01:41]}  Ra7 {[%clk 0:02:18]} 26. h5 {[%clk 0:01:37]}  Kg7 {[%clk 0:02:18]} 27. Bf3 {[%clk 0:01:36]}  Qe7 {[%clk 0:02:15]} 28. Kg2 {[%clk 0:01:28]}  Qf6 {[%clk 0:02:15]} 29. Re5 {[%clk 0:01:18]}  Nd7 {[%clk 0:02:12]} 30. R5e2 {[%clk 0:01:18]}  Qf5 {[%clk 0:02:01]} 31. hxg6 {[%clk 0:01:15]}  hxg6 {[%clk 0:02:02]} 32. Bc6 {[%clk 0:01:13]}  Nc5 {[%clk 0:02:02]} 33. Be4 {[%clk 0:01:07]}  Qf6 {[%clk 0:02:01]} 34. Bc6 {[%clk 0:01:03]}  Rh8 {[%clk 0:02:01]} 35. Re5 {[%clk 0:00:59]}  Qd8 {[%clk 0:01:41]} 36. Rh1 {[%clk 0:00:50]}  Rxh1 {[%clk 0:01:40]} 37. Kxh1 {[%clk 0:00:51]}  Qd6 {[%clk 0:01:40]} 38. Kg2 {[%clk 0:00:46]}  a4 {[%clk 0:01:40]} 39. Re1 {[%clk 0:00:46]}  Re7 {[%clk 0:01:37]} 40. Qd2 {[%clk 0:00:37]}  e5 {[%clk 0:01:27]} 41. fxe5 {[%clk 0:00:36]}  Rxe5 {[%clk 0:01:27]} 42. Rh1 {[%clk 0:00:25]}  Qf6 {[%clk 0:01:26]} 43. Qh6+ {[%clk 0:00:16]}  Kg8 {[%clk 0:01:26]} 44. Qh7+ {[%clk 0:00:13]}  Kf8 {[%clk 0:01:27]} 45. Qh6+ {[%clk 0:00:14]}  Ke7 {[%clk 0:01:25]} 46. Qd2 {[%clk 0:00:14]}  Qf5 {[%clk 0:01:24]} 47. Rh8 {[%clk 0:00:09]}  Nxd3 {[%clk 0:01:20]} 48. Re8+ {[%clk 0:00:08]}  Kf6 {[%clk 0:01:18]} 49. Rxe5 {[%clk 0:00:07]}  Kxe5 {[%clk 0:01:04]} 50. f4+ {[%clk 0:00:07]}  Kd6 {[%clk 0:00:51]} 51. Qe2 {[%clk 0:00:04]}  Nc5 {[%clk 0:00:50]} 52. Qe8 {[%clk 0:00:03]}  Qc2+ {[%clk 0:00:43]} 53. Kh3 {[%clk 0:00:03]}  Qxc4 {[%clk 0:00:44]} 54. Qf8+ {[%clk 0:00:02]}  Ke6 {[%clk 0:00:44]} 55. Qe8+ {[%clk 0:00:02]}  Kf6 {[%clk 0:00:45]} 56. Qd8+ {[%clk 0:00:01]}  Kg7 {[%clk 0:00:45]} 0-1


[Site "https://www.chess.com"]

[Event "Titled Tuesday Blitz May 30 Late 2023"]
[White "Sarana, Alexey"]
[Black "Gubajdullin, Alexei"]
[WhiteFideId "24133795"]
[BlackFideId "4141202"]
[WhiteElo "2714"]
[BlackElo "2279"]
[Result "1-0"]
[Round "08"]
[TimeControl "180+2"]
[Date "2023.05.31"]
[WhiteClock "0:00:14"]
[BlackClock "0:00:01"]

1. e4 {[%clk 0:03:00]}  g6 {[%clk 0:02:59]} 2. d4 {[%clk 0:03:00]}  Bg7 {[%clk 0:02:59]} 3. Nc3 {[%clk 0:03:00]}  d6 {[%clk 0:02:58]} 4. f4 {[%clk 0:03:01]}  c6 {[%clk 0:02:54]} 5. Nf3 {[%clk 0:03:00]}  Bg4 {[%clk 0:02:52]} 6. Be3 {[%clk 0:02:59]}  Qb6 {[%clk 0:02:52]} 7. Qd2 {[%clk 0:02:42]}  Bxf3 {[%clk 0:02:51]} 8. gxf3 {[%clk 0:02:43]}  Nf6 {[%clk 0:02:25]} 9. O-O-O {[%clk 0:02:37]}  d5 {[%clk 0:02:03]} 10. f5 {[%clk 0:02:35]}  gxf5 {[%clk 0:01:54]} 11. Rg1 {[%clk 0:02:33]}  Bf8 {[%clk 0:01:52]} 12. e5 {[%clk 0:02:33]}  Nfd7 {[%clk 0:01:51]} 13. e6 {[%clk 0:02:32]}  fxe6 {[%clk 0:01:49]} 14. Bf4 {[%clk 0:02:23]}  e5 {[%clk 0:01:45]} 15. Na4 {[%clk 0:02:21]}  Qc7 {[%clk 0:01:36]} 16. dxe5 {[%clk 0:02:20]}  e6 {[%clk 0:01:35]} 17. Bg5 {[%clk 0:02:08]}  b5 {[%clk 0:01:09]} 18. Nc3 {[%clk 0:02:07]}  b4 {[%clk 0:01:08]} 19. Ne2 {[%clk 0:02:07]}  Bg7 {[%clk 0:00:51]} 20. Nd4 {[%clk 0:02:04]}  Qxe5 {[%clk 0:00:46]} 21. Qf2 {[%clk 0:01:49]}  Nf8 {[%clk 0:00:38]} 22. f4 {[%clk 0:01:46]}  Qd6 {[%clk 0:00:34]} 23. Be2 {[%clk 0:01:36]}  Kd7 {[%clk 0:00:27]} 24. Bf3 {[%clk 0:01:34]}  Kc7 {[%clk 0:00:23]} 25. Bd8+ {[%clk 0:01:33]}  Qxd8 {[%clk 0:00:19]} 26. Rxg7+ {[%clk 0:01:34]}  Nbd7 {[%clk 0:00:19]} 27. Qe3 {[%clk 0:01:10]}  Qf6 {[%clk 0:00:18]} 28. Rdg1 {[%clk 0:01:10]}  Re8 {[%clk 0:00:12]} 29. Nb3 {[%clk 0:01:10]}  Kb8 {[%clk 0:00:11]} 30. Na5 {[%clk 0:01:08]}  e5 {[%clk 0:00:10]} 31. Qb3 {[%clk 0:00:57]}  Qd6 {[%clk 0:00:09]} 32. Qxb4+ {[%clk 0:00:57]}  Qxb4 {[%clk 0:00:08]} 33. Nxc6+ {[%clk 0:00:57]}  Kc8 {[%clk 0:00:08]} 34. Nxb4 {[%clk 0:00:58]}  exf4 {[%clk 0:00:06]} 35. Nxd5 {[%clk 0:00:55]}  Ne6 {[%clk 0:00:05]} 36. Re7 {[%clk 0:00:49]}  Nd4 {[%clk 0:00:04]} 37. Bh5 {[%clk 0:00:39]}  Rxe7 {[%clk 0:00:04]} 38. Nxe7+ {[%clk 0:00:40]}  Kc7 {[%clk 0:00:04]} 39. Nd5+ {[%clk 0:00:40]}  Kd6 {[%clk 0:00:05]} 40. Nxf4 {[%clk 0:00:38]}  Ke5 {[%clk 0:00:05]} 41. Nd3+ {[%clk 0:00:38]}  Kf6 {[%clk 0:00:05]} 42. Rf1 {[%clk 0:00:36]}  Ne5 {[%clk 0:00:04]} 43. Nf4 {[%clk 0:00:35]}  Rc8 {[%clk 0:00:03]} 44. c3 {[%clk 0:00:35]}  Ne6 {[%clk 0:00:03]} 45. Nd5+ {[%clk 0:00:34]}  Kg5 {[%clk 0:00:03]} 46. Bd1 {[%clk 0:00:29]}  f4 {[%clk 0:00:03]} 47. h4+ {[%clk 0:00:29]}  Kxh4 {[%clk 0:00:02]} 48. Nxf4 {[%clk 0:00:29]}  Nxf4 {[%clk 0:00:02]} 49. Rxf4+ {[%clk 0:00:30]}  Kg5 {[%clk 0:00:02]} 50. Re4 {[%clk 0:00:26]}  Re8 {[%clk 0:00:02]} 51. Kd2 {[%clk 0:00:16]}  h5 {[%clk 0:00:02]} 52. Ke2 {[%clk 0:00:14]}  h4 {[%clk 0:00:01]} 53. Kf1 {[%clk 0:00:14]}  Rf8+ {[%clk 0:00:01]} 54. Kg2 {[%clk 0:00:14]} 1-0


[Site "https://www.chess.com"]

[Event "Titled Tuesday Blitz May 30 Late 2023"]
[White "Kramnik, Vladimir"]
[Black "Martinez Ramirez, Lennis"]
[WhiteFideId "4101588"]
[BlackFideId "3509079"]
[WhiteElo "2703"]
[BlackElo "2410"]
[Result "1-0"]
[Round "08"]
[TimeControl "180+2"]
[Date "2023.05.31"]
[WhiteClock "0:00:03"]
[BlackClock "0:00:07"]

1. e4 {[%clk 0:03:00]}  c5 {[%clk 0:02:59]} 2. Nf3 {[%clk 0:03:00]}  Nc6 {[%clk 0:02:59]} 3. Bb5 {[%clk 0:02:59]}  g6 {[%clk 0:02:59]} 4. Nc3 {[%clk 0:02:58]}  Bg7 {[%clk 0:02:59]} 5. d3 {[%clk 0:02:58]}  Nd4 {[%clk 0:02:49]} 6. Bc4 {[%clk 0:02:53]}  e6 {[%clk 0:02:46]} 7. h4 {[%clk 0:02:53]}  h6 {[%clk 0:02:46]} 8. Bf4 {[%clk 0:02:49]}  a6 {[%clk 0:02:43]} 9. Nxd4 {[%clk 0:02:35]}  cxd4 {[%clk 0:02:43]} 10. Ne2 {[%clk 0:02:35]}  d5 {[%clk 0:02:37]} 11. Bb3 {[%clk 0:02:33]}  Ne7 {[%clk 0:02:06]} 12. Qd2 {[%clk 0:02:21]}  a5 {[%clk 0:02:06]} 13. a3 {[%clk 0:02:09]}  a4 {[%clk 0:02:05]} 14. Ba2 {[%clk 0:02:09]}  e5 {[%clk 0:01:44]} 15. Bg3 {[%clk 0:02:04]}  Be6 {[%clk 0:01:44]} 16. O-O-O {[%clk 0:01:52]}  O-O {[%clk 0:01:37]} 17. Kb1 {[%clk 0:01:48]}  Ra6 {[%clk 0:01:33]} 18. Nc1 {[%clk 0:01:43]}  Rb6 {[%clk 0:01:29]} 19. f4 {[%clk 0:01:21]}  dxe4 {[%clk 0:01:28]} 20. dxe4 {[%clk 0:01:18]}  Bxa2+ {[%clk 0:01:21]} 21. Nxa2 {[%clk 0:01:10]}  exf4 {[%clk 0:01:21]} 22. Bxf4 {[%clk 0:01:09]}  d3 {[%clk 0:01:21]} 23. c3 {[%clk 0:01:07]}  Nc6 {[%clk 0:01:09]} 24. Qxd3 {[%clk 0:01:01]}  Qf6 {[%clk 0:01:07]} 25. Qd6 {[%clk 0:00:46]}  Re8 {[%clk 0:00:34]} 26. Qxf6 {[%clk 0:00:39]}  Bxf6 {[%clk 0:00:34]} 27. Rde1 {[%clk 0:00:31]}  h5 {[%clk 0:00:34]} 28. g3 {[%clk 0:00:27]}  Rb5 {[%clk 0:00:33]} 29. Rhf1 {[%clk 0:00:25]}  Be5 {[%clk 0:00:30]} 30. Nb4 {[%clk 0:00:24]}  Nxb4 {[%clk 0:00:30]} 31. axb4 {[%clk 0:00:24]}  Rb6 {[%clk 0:00:21]} 32. Ka2 {[%clk 0:00:23]}  Rbe6 {[%clk 0:00:21]} 33. Ka3 {[%clk 0:00:10]}  b5 {[%clk 0:00:21]} 34. Bxe5 {[%clk 0:00:10]}  Rxe5 {[%clk 0:00:21]} 35. c4 {[%clk 0:00:10]}  bxc4 {[%clk 0:00:20]} 36. Rf6 {[%clk 0:00:09]}  Rxe4 {[%clk 0:00:20]} 37. Rxe4 {[%clk 0:00:08]}  Rxe4 {[%clk 0:00:21]} 38. b5 {[%clk 0:00:08]}  Re3+ {[%clk 0:00:21]} 39. Kxa4 {[%clk 0:00:08]}  Rxg3 {[%clk 0:00:22]} 40. b6 {[%clk 0:00:05]}  Rb3 {[%clk 0:00:22]} 41. Ka5 {[%clk 0:00:05]}  Rxb2 {[%clk 0:00:22]} 42. Rc6 {[%clk 0:00:05]}  Ra2+ {[%clk 0:00:16]} 43. Kb5 {[%clk 0:00:05]}  Rb2+ {[%clk 0:00:17]} 44. Kxc4 {[%clk 0:00:04]}  Kg7 {[%clk 0:00:17]} 45. Kc5 {[%clk 0:00:03]}  g5 {[%clk 0:00:15]} 46. hxg5 {[%clk 0:00:02]}  h4 {[%clk 0:00:15]} 47. Rh6 {[%clk 0:00:02]}  Rg2 {[%clk 0:00:12]} 48. Rxh4 {[%clk 0:00:01]}  Rxg5+ {[%clk 0:00:12]} 49. Kc6 {[%clk 0:00:02]}  Rg2 {[%clk 0:00:11]} 50. b7 {[%clk 0:00:02]}  Rb2 {[%clk 0:00:11]} 51. Rh5 {[%clk 0:00:02]}  Rc2+ {[%clk 0:00:08]} 52. Kb6 {[%clk 0:00:02]}  Rb2+ {[%clk 0:00:08]} 53. Rb5 {[%clk 0:00:03]}  Re2 {[%clk 0:00:02]} 54. b8=Q {[%clk 0:00:02]}  Re6+ {[%clk 0:00:03]} 55. Kc5 {[%clk 0:00:02]}  Kf6 {[%clk 0:00:04]} 56. Kd5 {[%clk 0:00:02]}  Ke7 {[%clk 0:00:05]} 57. Rb7+ {[%clk 0:00:02]}  Kf6 {[%clk 0:00:06]} 58. Qf4+ {[%clk 0:00:02]}  Kg6 {[%clk 0:00:06]} 59. Qxf7+ {[%clk 0:00:02]}  Kg5 {[%clk 0:00:07]} 60. Qxe6 {[%clk 0:00:02]}  Kh5 {[%clk 0:00:07]} 61. Rg7 {[%clk 0:00:02]}  Kh4 {[%clk 0:00:07]} 62. Qh6# {[%clk 0:00:03]} 1-0


[Site "https://www.chess.com"]

[Event "Titled Tuesday Blitz May 30 Late 2023"]
[White "Sun, Rick"]
[Black "Paravyan, David"]
[WhiteFideId "30909481"]
[BlackFideId "4194985"]
[WhiteElo "2169"]
[BlackElo "2563"]
[Result "1-0"]
[Round "08"]
[TimeControl "180+2"]
[Date "2023.05.31"]
[WhiteClock "0:00:17"]
[BlackClock "0:00:07"]

1. e4 {[%clk 0:03:00]}  c5 {[%clk 0:02:58]} 2. Nf3 {[%clk 0:03:01]}  d6 {[%clk 0:02:56]} 3. d4 {[%clk 0:03:01]}  cxd4 {[%clk 0:02:57]} 4. Nxd4 {[%clk 0:03:02]}  Nf6 {[%clk 0:02:57]} 5. Nc3 {[%clk 0:03:03]}  a6 {[%clk 0:02:56]} 6. Bg5 {[%clk 0:03:03]}  e6 {[%clk 0:02:53]} 7. f3 {[%clk 0:03:02]}  Be7 {[%clk 0:02:52]} 8. Qd2 {[%clk 0:03:02]}  b5 {[%clk 0:02:50]} 9. Bd3 {[%clk 0:02:34]}  Bb7 {[%clk 0:02:46]} 10. O-O-O {[%clk 0:02:33]}  b4 {[%clk 0:02:41]} 11. Nce2 {[%clk 0:02:27]}  Qa5 {[%clk 0:02:22]} 12. Nb3 {[%clk 0:02:00]}  Qb6 {[%clk 0:01:34]} 13. Be3 {[%clk 0:01:55]}  Qc7 {[%clk 0:01:34]} 14. g4 {[%clk 0:01:11]}  Nc6 {[%clk 0:01:13]} 15. g5 {[%clk 0:01:09]}  Nd7 {[%clk 0:01:12]} 16. f4 {[%clk 0:01:10]}  Nc5 {[%clk 0:00:58]} 17. Kb1 {[%clk 0:00:49]}  Na5 {[%clk 0:00:48]} 18. Qxb4 {[%clk 0:00:41]}  Naxb3 {[%clk 0:00:45]} 19. axb3 {[%clk 0:00:37]}  a5 {[%clk 0:00:36]} 20. Qd4 {[%clk 0:00:27]}  O-O {[%clk 0:00:36]} 21. Nc3 {[%clk 0:00:22]}  Rfc8 {[%clk 0:00:21]} 22. h4 {[%clk 0:00:20]}  a4 {[%clk 0:00:20]} 23. b4 {[%clk 0:00:20]}  Nxd3 {[%clk 0:00:16]} 24. Rxd3 {[%clk 0:00:21]}  a3 {[%clk 0:00:16]} 25. b3 {[%clk 0:00:19]}  a2+ {[%clk 0:00:14]} 26. Kb2 {[%clk 0:00:18]}  e5 {[%clk 0:00:05]} 27. fxe5 {[%clk 0:00:19]}  dxe5 {[%clk 0:00:04]} 28. Qd7 {[%clk 0:00:20]}  Bxb4 {[%clk 0:00:04]} 29. Qxc7 {[%clk 0:00:18]}  Rxc7 {[%clk 0:00:05]} 30. Nd5 {[%clk 0:00:18]}  a1=Q+ {[%clk 0:00:03]} 31. Rxa1 {[%clk 0:00:17]}  Bxd5 {[%clk 0:00:02]} 32. Rxa8+ {[%clk 0:00:16]}  Bxa8 {[%clk 0:00:02]} 33. Rd8+ {[%clk 0:00:16]}  Bf8 {[%clk 0:00:03]} 34. Rxa8 {[%clk 0:00:17]}  f6 {[%clk 0:00:03]} 35. gxf6 {[%clk 0:00:13]}  Kf7 {[%clk 0:00:04]} 36. fxg7 {[%clk 0:00:12]}  Bxg7 {[%clk 0:00:03]} 37. Ra7 {[%clk 0:00:12]}  Rxa7 {[%clk 0:00:02]} 38. Bxa7 {[%clk 0:00:13]}  h5 {[%clk 0:00:03]} 39. Bf2 {[%clk 0:00:13]}  Bf6 {[%clk 0:00:03]} 40. c4 {[%clk 0:00:14]}  Ke6 {[%clk 0:00:04]} 41. Kc3 {[%clk 0:00:14]}  Kd6 {[%clk 0:00:05]} 42. b4 {[%clk 0:00:15]}  Kc6 {[%clk 0:00:06]} 43. b5+ {[%clk 0:00:15]}  Kb7 {[%clk 0:00:06]} 44. Kb4 {[%clk 0:00:16]}  Be7+ {[%clk 0:00:06]} 45. c5 {[%clk 0:00:16]}  Kc7 {[%clk 0:00:07]} 46. Kc4 {[%clk 0:00:17]} 1-0


[Site "https://www.chess.com"]

[Event "Titled Tuesday Blitz May 30 Late 2023"]
[White "Rosen, Eric"]
[Black "Moroni, Luca Jr"]
[WhiteFideId "2032562"]
[BlackFideId "865834"]
[WhiteElo "2331"]
[BlackElo "2569"]
[Result "1-0"]
[Round "08"]
[TimeControl "180+2"]
[Date "2023.05.31"]
[WhiteClock "0:00:06"]
[BlackClock "0:00:18"]

1. d4 {[%clk 0:03:00]}  g5 {[%clk 0:02:57]} 2. Bxg5 {[%clk 0:02:59]}  Bg7 {[%clk 0:02:57]} 3. Nf3 {[%clk 0:02:52]}  c5 {[%clk 0:02:56]} 4. e3 {[%clk 0:02:37]}  Qb6 {[%clk 0:02:55]} 5. Nbd2 {[%clk 0:02:37]}  cxd4 {[%clk 0:02:54]} 6. exd4 {[%clk 0:02:32]}  Nc6 {[%clk 0:02:53]} 7. Nc4 {[%clk 0:02:26]}  Qc7 {[%clk 0:02:51]} 8. c3 {[%clk 0:02:25]}  d5 {[%clk 0:02:47]} 9. Ne3 {[%clk 0:02:20]}  Be6 {[%clk 0:02:47]} 10. Bh4 {[%clk 0:02:20]}  Nf6 {[%clk 0:02:44]} 11. Bd3 {[%clk 0:02:17]}  Bh6 {[%clk 0:02:37]} 12. Bg3 {[%clk 0:02:14]}  Bf4 {[%clk 0:02:36]} 13. Qb3 {[%clk 0:02:12]}  O-O-O {[%clk 0:02:30]} 14. O-O-O {[%clk 0:02:08]}  Ng4 {[%clk 0:02:29]} 15. Rhe1 {[%clk 0:01:49]}  Nxe3 {[%clk 0:02:07]} 16. Bxf4 {[%clk 0:01:42]}  Qxf4 {[%clk 0:02:08]} 17. fxe3 {[%clk 0:01:38]}  Qc7 {[%clk 0:02:08]} 18. Rd2 {[%clk 0:01:36]}  Bg4 {[%clk 0:02:01]} 19. Rf2 {[%clk 0:01:31]}  Bxf3 {[%clk 0:01:58]} 20. gxf3 {[%clk 0:01:30]}  e6 {[%clk 0:01:57]} 21. Kb1 {[%clk 0:01:29]}  Rhg8 {[%clk 0:01:57]} 22. Qc2 {[%clk 0:01:12]}  h6 {[%clk 0:01:55]} 23. Rg2 {[%clk 0:01:11]}  Ne7 {[%clk 0:01:43]} 24. Reg1 {[%clk 0:01:11]}  Qxh2 {[%clk 0:01:33]} 25. Rxh2 {[%clk 0:00:40]}  Rxg1+ {[%clk 0:01:32]} 26. Qc1 {[%clk 0:00:40]}  Rxc1+ {[%clk 0:01:32]} 27. Kxc1 {[%clk 0:00:41]}  Rh8 {[%clk 0:01:32]} 28. Kd2 {[%clk 0:00:42]}  Kd7 {[%clk 0:01:29]} 29. Ke2 {[%clk 0:00:42]}  Kd6 {[%clk 0:01:28]} 30. Rh5 {[%clk 0:00:42]}  f6 {[%clk 0:01:27]} 31. e4 {[%clk 0:00:39]}  e5 {[%clk 0:01:25]} 32. Ke3 {[%clk 0:00:23]}  Ng6 {[%clk 0:01:21]} 33. Rf5 {[%clk 0:00:11]}  Ke7 {[%clk 0:01:17]} 34. exd5 {[%clk 0:00:05]}  Nh4 {[%clk 0:01:16]} 35. Rh5 {[%clk 0:00:05]}  Ng2+ {[%clk 0:01:16]} 36. Kd2 {[%clk 0:00:04]}  Nf4 {[%clk 0:01:16]} 37. Rh2 {[%clk 0:00:03]}  exd4 {[%clk 0:01:11]} 38. c4 {[%clk 0:00:02]}  Kd6 {[%clk 0:01:02]} 39. b4 {[%clk 0:00:02]}  h5 {[%clk 0:01:00]} 40. Rh4 {[%clk 0:00:02]}  Ke5 {[%clk 0:00:52]} 41. Be4 {[%clk 0:00:03]}  Ng2 {[%clk 0:00:48]} 42. Rh2 {[%clk 0:00:02]}  Ne3 {[%clk 0:00:49]} 43. Kd3 {[%clk 0:00:01]}  f5 {[%clk 0:00:49]} 44. f4+ {[%clk 0:00:01]}  Kxf4 {[%clk 0:00:47]} 45. Bh1 {[%clk 0:00:01]}  Ng4 {[%clk 0:00:42]} 46. Re2 {[%clk 0:00:01]}  a5 {[%clk 0:00:34]} 47. Kxd4 {[%clk 0:00:01]}  axb4 {[%clk 0:00:33]} 48. c5 {[%clk 0:00:02]}  h4 {[%clk 0:00:33]} 49. d6 {[%clk 0:00:02]}  h3 {[%clk 0:00:31]} 50. Bxb7 {[%clk 0:00:02]}  h2 {[%clk 0:00:30]} 51. Bh1 {[%clk 0:00:03]}  Kg3 {[%clk 0:00:26]} 52. c6 {[%clk 0:00:03]}  f4 {[%clk 0:00:27]} 53. Rg2+ {[%clk 0:00:03]}  Kh3 {[%clk 0:00:26]} 54. Rxg4 {[%clk 0:00:03]}  Kxg4 {[%clk 0:00:26]} 55. c7 {[%clk 0:00:04]}  f3 {[%clk 0:00:25]} 56. d7 {[%clk 0:00:04]}  f2 {[%clk 0:00:22]} 57. c8=Q {[%clk 0:00:04]}  f1=Q {[%clk 0:00:18]} 58. d8=Q+ {[%clk 0:00:05]}  Kg3 {[%clk 0:00:18]} 59. Qcc7+ {[%clk 0:00:05]}  Kf2 {[%clk 0:00:18]} 60. Qf7+ {[%clk 0:00:05]}  Kg1 {[%clk 0:00:17]} 61. Qxf1+ {[%clk 0:00:06]}  Kxf1 {[%clk 0:00:18]} 62. Qxh8 {[%clk 0:00:06]} 1-0


[Site "https://www.chess.com"]

[Event "Titled Tuesday Blitz May 30 Late 2023"]
[White "Domingo Nunez, Ruben"]
[Black "Zhigalko, Sergei"]
[WhiteFideId "22245570"]
[BlackFideId "13502956"]
[WhiteElo "2404"]
[BlackElo "2626"]
[Result "0-1"]
[Round "08"]
[TimeControl "180+2"]
[Date "2023.05.31"]
[WhiteClock "0:01:05"]
[BlackClock "0:01:59"]

1. Nf3 {[%clk 0:02:55]}  d5 {[%clk 0:02:59]} 2. d4 {[%clk 0:02:54]}  e6 {[%clk 0:02:59]} 3. e3 {[%clk 0:02:53]}  Nf6 {[%clk 0:02:58]} 4. Be2 {[%clk 0:02:53]}  b6 {[%clk 0:02:59]} 5. O-O {[%clk 0:02:54]}  Bb7 {[%clk 0:02:59]} 6. c4 {[%clk 0:02:54]}  Bd6 {[%clk 0:02:59]} 7. Nc3 {[%clk 0:02:54]}  Nbd7 {[%clk 0:02:58]} 8. b3 {[%clk 0:02:53]}  O-O {[%clk 0:02:58]} 9. Bb2 {[%clk 0:02:53]}  a6 {[%clk 0:02:59]} 10. Rc1 {[%clk 0:02:51]}  Qe7 {[%clk 0:02:58]} 11. h3 {[%clk 0:02:48]}  Rfe8 {[%clk 0:02:57]} 12. Qc2 {[%clk 0:02:44]}  Rac8 {[%clk 0:02:42]} 13. Rfd1 {[%clk 0:02:40]}  h6 {[%clk 0:02:36]} 14. Qb1 {[%clk 0:02:39]}  c5 {[%clk 0:02:34]} 15. dxc5 {[%clk 0:02:38]}  bxc5 {[%clk 0:02:34]} 16. Na4 {[%clk 0:01:37]}  Ne4 {[%clk 0:02:29]} 17. Nc3 {[%clk 0:01:36]}  Ndf6 {[%clk 0:02:23]} 18. Nxe4 {[%clk 0:01:34]}  Nxe4 {[%clk 0:02:22]} 19. Be5 {[%clk 0:01:31]}  Bxe5 {[%clk 0:02:13]} 20. Nxe5 {[%clk 0:01:32]}  Qf6 {[%clk 0:02:13]} 21. Nf3 {[%clk 0:01:16]}  Nc3 {[%clk 0:02:11]} 22. Qc2 {[%clk 0:01:09]}  Nxd1 {[%clk 0:02:10]} 23. Qxd1 {[%clk 0:01:10]}  Red8 {[%clk 0:02:05]} 24. Qe1 {[%clk 0:01:10]}  d4 {[%clk 0:02:04]} 25. exd4 {[%clk 0:01:11]}  cxd4 {[%clk 0:02:04]} 26. Rd1 {[%clk 0:01:11]}  d3 {[%clk 0:02:00]} 27. Bxd3 {[%clk 0:01:07]}  Bxf3 {[%clk 0:02:00]} 28. gxf3 {[%clk 0:01:07]}  Qxf3 {[%clk 0:02:00]} 29. Qe3 {[%clk 0:01:05]}  Qxd1+ {[%clk 0:01:59]} 0-1


[Site "https://www.chess.com"]

[Event "Titled Tuesday Blitz May 30 Late 2023"]
[White "Saveliev, Alexei"]
[Black "Hambleton, Aman"]
[WhiteFideId "24128546"]
[BlackFideId "2606577"]
[WhiteElo "2271"]
[BlackElo "2511"]
[Result "1-0"]
[Round "08"]
[TimeControl "180+2"]
[Date "2023.05.31"]
[WhiteClock "0:00:15"]
[BlackClock "0:00:01"]

1. c4 {[%clk 0:03:00]}  c5 {[%clk 0:02:54]} 2. Nc3 {[%clk 0:02:59]}  b6 {[%clk 0:02:54]} 3. e3 {[%clk 0:02:59]}  Bb7 {[%clk 0:02:54]} 4. d4 {[%clk 0:03:00]}  cxd4 {[%clk 0:02:54]} 5. exd4 {[%clk 0:03:01]}  e6 {[%clk 0:02:55]} 6. d5 {[%clk 0:03:01]}  Bb4 {[%clk 0:02:55]} 7. Nf3 {[%clk 0:02:45]}  Nf6 {[%clk 0:02:55]} 8. Bg5 {[%clk 0:02:41]}  h6 {[%clk 0:02:55]} 9. Bh4 {[%clk 0:02:41]}  Na6 {[%clk 0:02:14]} 10. Be2 {[%clk 0:02:34]}  Nc5 {[%clk 0:02:12]} 11. O-O {[%clk 0:02:31]}  Bxc3 {[%clk 0:02:12]} 12. bxc3 {[%clk 0:02:31]}  Nce4 {[%clk 0:02:00]} 13. Bd3 {[%clk 0:02:17]}  g5 {[%clk 0:01:39]} 14. Bxe4 {[%clk 0:02:06]}  gxh4 {[%clk 0:00:36]} 15. Re1 {[%clk 0:02:06]}  Nxe4 {[%clk 0:00:30]} 16. Rxe4 {[%clk 0:02:07]}  h3 {[%clk 0:00:30]} 17. Qd4 {[%clk 0:01:53]}  Rg8 {[%clk 0:00:25]} 18. g3 {[%clk 0:01:48]}  Qe7 {[%clk 0:00:17]} 19. a4 {[%clk 0:01:36]}  Rc8 {[%clk 0:00:11]} 20. Rae1 {[%clk 0:01:27]}  Kf8 {[%clk 0:00:07]} 21. Rf4 {[%clk 0:01:20]}  Rg7 {[%clk 0:00:04]} 22. Nh4 {[%clk 0:01:02]}  Kg8 {[%clk 0:00:04]} 23. Qxg7+ {[%clk 0:01:01]}  Kxg7 {[%clk 0:00:04]} 24. Nf5+ {[%clk 0:01:02]}  Kf8 {[%clk 0:00:02]} 25. Nxe7 {[%clk 0:01:01]}  Kxe7 {[%clk 0:00:03]} 26. Rh4 {[%clk 0:00:54]}  Rc5 {[%clk 0:00:03]} 27. Ree4 {[%clk 0:00:45]}  Kd6 {[%clk 0:00:02]} 28. Rxh3 {[%clk 0:00:42]}  f5 {[%clk 0:00:02]} 29. Rd4 {[%clk 0:00:40]}  Ra5 {[%clk 0:00:02]} 30. Rxh6 {[%clk 0:00:40]}  Kc7 {[%clk 0:00:02]} 31. Rh7 {[%clk 0:00:32]}  Rxa4 {[%clk 0:00:02]} 32. h4 {[%clk 0:00:30]}  e5 {[%clk 0:00:02]} 33. Rd1 {[%clk 0:00:24]}  Rxc4 {[%clk 0:00:02]} 34. h5 {[%clk 0:00:24]}  b5 {[%clk 0:00:01]} 35. h6 {[%clk 0:00:24]}  f4 {[%clk 0:00:01]} 36. Rg7 {[%clk 0:00:20]}  fxg3 {[%clk 0:00:02]} 37. fxg3 {[%clk 0:00:20]}  Rxc3 {[%clk 0:00:01]} 38. h7 {[%clk 0:00:20]}  Rc2 {[%clk 0:00:01]} 39. h8=Q {[%clk 0:00:17]}  Bxd5 {[%clk 0:00:01]} 40. Rxd5 {[%clk 0:00:16]}  Rc1+ {[%clk 0:00:01]} 41. Kf2 {[%clk 0:00:16]}  Rh1 {[%clk 0:00:01]} 42. Qxh1 {[%clk 0:00:15]} 1-0


[Site "https://www.chess.com"]